Workbook

Sheet 汇总表
A1: 附件
A2: 贵阳市文化和旅游局2025年公开招聘局属事业单位工作人员面试成绩、总成绩及进入体检环节人员名单
A3: 序号 | B3: 姓名 | C3: 准考证号 | D3: 报考单位 | E3: 报考岗位及代码 | F3: 笔试成绩 | G3: 笔试成绩（百分制） | H3: 笔试成绩60% | I3: 面试成绩 | J3: 面试成绩40% | K3: 总成绩 | L3: 综合 排名 | M3: 是否进入体检 | N3: 备注
A4: 1 | B4: 勾香韵 | C4: 1152013300613 | D4: 贵阳市图书馆 | E4: 20101015101 | F4: 220.5 | G4: =F4/3 -> 73.50 | H4: =G4*0.6 -> 44.10 | I4: 78.00 | J4: =I4*0.4 -> 31.20 | K4: =H4+J4 -> 75.30 | L4: 1 | M4: 是
A5: 2 | B5: 孟芳伊 | C5: 1152013200508 | D5: 贵阳市图书馆 | E5: 20101015101 | F5: 216.5 | G5: =F5/3 -> 72.17 | H5: =G5*0.6 -> 43.30 | I5: 79.80 | J5: =I5*0.4 -> 31.92 | K5: =H5+J5 -> 75.22 | L5: 2
A6: 3 | B6: 黄力遥 | C6: 1152013202209 | D6: 贵阳市图书馆 | E6: 20101015101 | F6: 222 | G6: =F6/3 -> 74.00 | H6: =G6*0.6 -> 44.40 | I6: 0.00 | J6: 0.00 | K6: =H6+J6 -> 44.40 | L6: 3 | N6: 面试缺考
A7: 4 | B7: 石贵红 | C7: 1152013300513 | D7: 贵阳市图书馆 | E7: 20101015102 | F7: 213 | G7: =F7/3 -> 71.00 | H7: =G7*0.6 -> 42.60 | I7: 81.60 | J7: =I7*0.4 -> 32.64 | K7: =H7+J7 -> 75.24 | L7: 1 | M7: 是
A8: 5 | B8: 方迅 | C8: 1152013300110 | D8: 贵阳市图书馆 | E8: 20101015102 | F8: 208 | G8: 69.33 | H8: 41.60 | I8: 81.00 | J8: 32.40 | K8: 74.00 | L8: 2
A9: 6 | B9: 郑秋菊 | C9: 1152013301214 | D9: 贵阳市图书馆 | E9: 20101015102 | F9: 208.5 | G9: 69.50 | H9: 41.70 | I9: 0.00 | J9: 0.00 | K9: 41.70 | L9: 3 | N9: 面试缺考
A10: 7 | B10: 宋佳欣 | C10: 1152013301810 | D10: 贵阳市群众艺术馆 | E10: 20101015201 | F10: 217 | G10: 72.33 | H10: 43.40 | I10: 80.60 | J10: 32.24 | K10: 75.64 | L10: 1 | M10: 是
A11: 8 | B11: 王芳 | C11: 1152013300308 | D11: 贵阳市群众艺术馆 | E11: 20101015201 | F11: 213.5 | G11: 71.17 | H11: 42.70 | I11: 78.60 | J11: 31.44 | K11: 74.14 | L11: 2
A12: 9 | B12: 陈海妮 | C12: 1152013301508 | D12: 贵阳市群众艺术馆 | E12: 20101015201 | F12: 211.5 | G12: 70.50 | H12: 42.30 | I12: 0.00 | J12: 0.00 | K12: 42.30 | L12: 3 | N12: 面试缺考
A13: 10 | B13: 何杰 | C13: 1152013302028 | D13: 贵阳市少年儿童图书馆 | E13: 20101015301 | F13: 203 | G13: 67.67 | H13: 40.60 | I13: 80.00 | J13: 32.00 | K13: 72.60 | L13: 1 | M13: 是
A14: 11 | B14: 冷靖 | C14: 1152013300401 | D14: 贵阳市少年儿童图书馆 | E14: 20101015301 | F14: 207 | G14: 69.00 | H14: 41.40 | I14: 77.20 | J14: 30.88 | K14: 72.28 | L14: 2
A15: 12 | B15: 叶欢欢 | C15: 1152013301314 | D15: 贵阳市少年儿童图书馆 | E15: 20101015301 | F15: 206 | G15: 68.67 | H15: 41.20 | I15: 76.80 | J15: 30.72 | K15: 71.92 | L15: 3
A16: 13 | B16: 王寅 | C16: 1152013300103 | D16: 贵阳市少年儿童图书馆 | E16: 20101015302 | F16: 224.5 | G16: 74.83 | H16: 44.90 | I16: 79.60 | J16: 31.84 | K16: 76.74 | L16: 1 | M16: 是
A17: 14 | B17: 谢宏伟 | C17: 1152013300310 | D17: 贵阳市少年儿童图书馆 | E17: 20101015302 | F17: 202 | G17: 67.33 | H17: 40.40 | I17: 81.80 | J17: 32.72 | K17: 73.12 | L17: 2
A18: 15 | B18: 李木容 | C18: 1152013300204 | D18: 贵阳市少年儿童图书馆 | E18: 20101015302 | F18: 198.5 | G18: 66.17 | H18: 39.70 | I18: 81.00 | J18: 32.40 | K18: 72.10 | L18: 3
